[Event "1st Gujarat GM Open 2018"]
[Site "Ahmedabad"]
[Date "2018.10.08"]
[Round "5"]
[White "Balaji Sekar"]
[Black "Arpan, Das"]
[Result "1/2-1/2"]
[ECO "B47"]
[WhiteElo "1189"]
[BlackElo "2164"]
[Annotator "NA"]
[PlyCount "135"]
[EventDate "2018.10.05"]
[EventType "swiss"]
[EventCountry "IND"]
[SourceTitle "playchess.com"]
[Source "ChessBase"]
[SourceQuality "1"]
[TimeControl "5400+30"]

1. e4 {[%emt 0:00:00]} c5 {[%emt 0:00:00]} 2. Nf3 {[%emt 0:00:00]} e6 {[%emt 0:00:00]} 3. d4 {[%emt 0:00:00]} cxd4 {[%emt 0:00:00]} 4. Nxd4 {[%emt 0:00:00]} Nc6 {[%emt 0:00:08]} 5. Nc3 {[%emt 0:00:00]} Qc7 {[%emt 0:00:04]} 6. Be2 {[%emt 0:00:00]} Nf6 {[%emt 0:00:16]} 7. O-O {[%emt 0:00:00]} Be7 {[%emt 0:00:05]} 8. Be3 {[%emt 0:02:24]} O-O {[%emt 0:00:27]} 9. f4 {[%emt 0:03:47]} d6 {[%emt 0:01:48]} 10. Kh1 {[%emt 0:02:06]} Nxd4 {[%emt 0:00:41]} 11. Qxd4 {[%emt 0:00:40]} e5 {[%emt 0:00:04]} 12. Qd3 {[%emt 0:01:19]} exf4 {[%emt 0:02:27]} 13. Bxf4 {[%emt 0:00:54]} Be6 {[%emt 0:02:54]} 14. Rad1 {[%emt 0:21:06]} Rfd8 {[%emt 0:14:46]} 15. Qg3 {[%emt 0:06:30]} Kh8 {[%emt 0:07:20]} 16. Bg5 {[%emt 0:05:54]} a6 {[%emt 0:10:52]} 17. Bd3 {[%emt 0:00:00]} Kg8 {[%emt 0:00:00]} 18. Be2 {[%emt 0:01:00]} Kh8 {[%emt 0:01:00]} 19. Bd3 {[%emt 0:00:00]} Kg8 {[%emt 0:00:00]} 20. Be2 {[%emt 0:01:00]} Kh8 {[%emt 0:01:00]} 21. Bd3 {[%emt 0:08:51]} Ng8 {[%emt 0:20:05]} 22. Nd5 {[%emt 0:01:09]} Bxd5 {[%emt 0:01:00]} 23. exd5 {[%emt 0:00:02]} Bxg5 {[%emt 0:01:56]} 24. Qxg5 {[%emt 0:00:01]} g6 {[%emt 0:00:28]} 25. Qf4 {[%emt 0:04:14]} Kg7 {[%emt 0:01:59]} 26. Qd4+ {[%emt 0:09:28]} f6 {[%emt 0:01:02]} 27. Rfe1 {[%emt 0:02:57]} Re8 {[%emt 0:03:15]} 28. Re6 {[%emt 0:01:43]} Re7 {[%emt 0:01:58]} 29. Bc4 {[%emt 0:02:10]} Rae8 {[%emt 0:03:02]} 30. Kg1 {[%emt 0:03:16]} b5 {[%emt 0:01:37]} 31. Bb3 {[%emt 0:00:28]} Kf8 {[%emt 0:06:45]} 32. a4 {[%emt 0:00:57]} Qa5 {[%emt 0:03:38]} 33. axb5 {[%emt 0:01:16]} axb5 {[%emt 0:00:54]} 34. h3 {[%emt 0:00:44]} Qc7 {[%emt 0:00:47]} 35. Qf4 {[%emt 0:03:25]} Qc5+ {[%emt 0:03:21]} 36. Kf1 {[%emt 0:02:20]} Rxe6 {[%emt 0:02:07]} 37. dxe6 {[%emt 0:00:02]} Rd8 {[%emt 0:04:29]} 38. Rd5 {[%emt 0:04:45]} Qb6 {[%emt 0:00:04]} 39. Qb4 {[%emt 0:01:38]} Ne7 {[%emt 0:00:08]} 40. Rxb5 {[%emt 0:00:10]} Qe3 {[%emt 0:00:12]} 41. Qe1 {[%emt 0:12:13]} Qf4+ {[%emt 0:04:36]} 42. Kg1 {[%emt 0:00:05]} Qd4+ {[%emt 0:01:49]} 43. Kh2 {[%emt 0:00:03]} Qxb2 {[%emt 0:00:38]} 44. Qe3 {[%emt 0:00:55]} d5 {[%emt 0:00:35]} 45. c3 {[%emt 0:01:42]} Qa3 {[%emt 0:00:37]} 46. Qf4 {[%emt 0:00:31]} Qd6 {[%emt 0:01:03]} 47. Qxd6 {[%emt 0:00:11]} Rxd6 {[%emt 0:00:03]} 48. Rb8+ {[%emt 0:00:08]} Kg7 {[%emt 0:00:04]} 49. Rb7 {[%emt 0:00:06]} Kf8 {[%emt 0:00:32]} 50. Rb8+ {[%emt 0:00:25]} Kg7 {[%emt 0:00:04]} 51. Re8 {[%emt 0:00:21]} Rxe6 {[%emt 0:00:06]} 52. Bxd5 {[%emt 0:00:09]} Re5 {[%emt 0:02:07]} 53. Bf3 {[%emt 0:00:36]} Kf7 {[%emt 0:00:10]} 54. Rd8 {[%emt 0:00:21]} Rc5 {[%emt 0:00:16]} 55. Rd3 {[%emt 0:00:03]} Ke6 {[%emt 0:00:36]} 56. Kg3 {[%emt 0:02:01]} Nd5 {[%emt 0:00:47]} 57. Bxd5+ {[%emt 0:00:48]} Rxd5 {[%emt 0:00:04]} 58. Re3+ {[%emt 0:00:14]} Kd6 {[%emt 0:00:52]} 59. Kf3 {[%emt 0:00:08]} Rf5+ {[%emt 0:00:33]} 60. Ke2 {[%emt 0:00:06]} Kc5 {[%emt 0:00:10]} 61. g4 {[%emt 0:00:34]} Rg5 {[%emt 0:01:17]} 62. Rf3 {[%emt 0:00:46]} h5 {[%emt 0:00:21]} 63. gxh5 {[%emt 0:00:02]} Rxh5 {[%emt 0:00:04]} 64. Kd3 {[%emt 0:00:04]} f5 {[%emt 0:00:24]} 65. Rg3 {[%emt 0:00:29]} g5 {[%emt 0:00:24]} 66. Rf3 {[%emt 0:00:16]} g4 {[%emt 0:00:05]} 67. hxg4 {[%emt 0:00:16]} fxg4 {[%emt 0:00:10]} 68. Rf8 {[%emt 0:00:04]} 1/2-1/2